fUSD/lending_fUSD_20250202
["ID","MTS","AMOUNT","RATE_DAILY","PERIOD"]
[351282473,1738505543055,-612.75,0.00012465,2]
[351282474,1738505543064,-6130.86,0.00012465,2]
[351282475,1738505543074,-1008.29,0.00012465,2]
[351282476,1738505543084,-4888.75,0.00012465,2]
[351282477,1738505543095,-4468.98,0.00012465,2]
[351282478,1738505543105,-874.52,0.00012465,2]
[351282479,1738505543115,-7017.85,0.00012465,2]
[351282480,1738505543125,-7067.83,0.00012465,2]
[351282481,1738505543135,-504.51,0.00012465,2]
[351282482,1738505543145,-1694.57,0.00012465,2]
[351282483,1738505543155,-809.09,0.00012465,2]
[351282484,1738505543165,-1463.68,0.00012465,2]
[351282485,1738505543175,-500.0,0.00012465,2]
[351282486,1738505543184,-500.0,0.00012465,2]
[351282487,1738505543194,-957.1,0.00012465,2]
[351282488,1738505543203,-5901.35,0.00012465,2]
[351282489,1738505543213,-25450.62,0.00012465,2]
[351282490,1738505543223,-3194.77,0.00012465,2]
[351282491,1738505543232,-972.11,0.00012465,2]
[351282492,1738505543243,-500.0,0.00012465,2]
[351282493,1738505543252,-978.28,0.00012465,2]
[351282494,1738505543262,-1927.34,0.00012465,2]
[351282495,1738505543272,-1313.38,0.00012465,2]
[351282496,1738505543283,-2290.65,0.00012465,2]
[351282497,1738505543293,-1822.98,0.00012465,2]
[351282498,1738505543302,-778.33,0.00012465,2]
[351282499,1738505543313,-2811.74,0.00012465,2]
[351282500,1738505543322,-500.0,0.00012465,2]
[351282501,1738505543332,-4241.49,0.00012465,2]
[351282502,1738505543342,-2753.15,0.00012465,2]
[351282503,1738505543351,-3179.79,0.00012465,2]
[351282504,1738505543361,-11875.49,0.00012465,2]
[351282505,1738505543371,-590.79,0.00012465,2]
[351282506,1738505543380,-500.0,0.00012465,2]
[351282507,1738505543391,-2422.99,0.00012465,2]
[351282508,1738505543400,-1805.01,0.00012465,2]
[351282509,1738505543410,-8941.69,0.00012465,2]
[351282510,1738505543420,-1720.61,0.00012465,2]
[351282511,1738505543430,-890.83,0.00012465,2]
[351282512,1738505543441,-500.0,0.00012465,2]
[351282513,1738505543451,-500.0,0.00012465,2]
[351282514,1738505543460,-924.98,0.00012465,2]
[351282515,1738505543470,-2796.09,0.00012465,2]
[351282516,1738505543480,-753.96,0.00012465,2]
[351282517,1738505543493,-2827.17,0.00012465,2]
[351282518,1738505543503,-1515.55,0.00012465,2]
[351282519,1738505543513,-500.0,0.00012465,2]
[351282520,1738505543523,-8022.15,0.00012465,2]
[351282521,1738505543534,-500.0,0.00012465,2]
[351282522,1738505543546,-1171.94,0.00012465,2]
[351282523,1738505543556,-502.10140045,0.00012465,2]
[351282524,1738505543565,-741.26,0.00012465,2]
[351282525,1738505543575,-1314.16,0.00012465,2]
[351282526,1738505543585,-500.0,0.00012465,2]
[351282527,1738505543595,-596.08,0.00012465,2]
[351282528,1738505543605,-2587.99,0.00012465,2]
[351282529,1738505543615,-500.0,0.00012465,2]
[351282530,1738505543626,-155.292379,0.00012465,2]
[351282531,1738505543636,-770.44,0.00012465,2]
[351282532,1738505543646,-3707.36,0.00012465,2]
[351282533,1738505543655,-651.22,0.00012465,2]
[351282534,1738505543665,-500.0,0.00012465,2]
[351282535,1738505543675,-500.0,0.00012465,2]
[351282536,1738505543684,-500.0,0.00012492,2]
[351282537,1738505543694,-306.11266436,0.000125,2]
[351282538,1738505543704,-500.0,0.00012519,2]
[351282539,1738505543714,-500.0,0.00012546,2]
[351282540,1738505543724,-423.14731664,0.00012574,2]
[351282541,1738505543734,-500.0,0.00012602,2]
[351282542,1738505543744,-388.16241727,0.00012602,2]
[351282543,1738505543753,-559.46,0.00012602,2]
[351282544,1738505543763,-500.0,0.00012602,2]
[351282545,1738505543772,-803.7,0.00012602,2]
[351282546,1738505543782,-500.0,0.00012602,2]
[351282547,1738505543792,-500.0,0.00012602,2]
[351282548,1738505543801,-500.0,0.00012602,2]
[351282549,1738505543811,-801.06,0.00012602,2]
[351282550,1738505543820,-500.0,0.00012602,2]
[351282551,1738505543829,-500.0,0.00012602,2]
[351282552,1738505543839,-773.23,0.00012602,2]
[351282553,1738505543848,-500.0,0.00012602,2]
[351282554,1738505543857,-759.9,0.00012602,2]
[351282555,1738505543867,-1260.15,0.00012602,2]
[351282556,1738505543876,-589.03,0.00012602,2]
[351282557,1738505543886,-500.0,0.00012602,2]
[351282558,1738505543895,-500.0,0.00012602,2]
[351282559,1738505543905,-500.0,0.00012602,2]
[351282560,1738505543914,-1063.41,0.00012602,2]
[351282561,1738505543924,-673.02,0.00012602,2]
[351282562,1738505543933,-500.0,0.00012602,2]
[351282563,1738505543942,-821.68,0.00012602,2]
[351282564,1738505543952,-549.88,0.00012602,2]
[351282565,1738505543962,-500.0,0.00012602,2]
[351282566,1738505543971,-703.15,0.00012602,2]
[351282567,1738505543980,-500.0,0.00012602,2]
[351282568,1738505543989,-828.9,0.00012602,2]
[351282569,1738505544000,-627.47,0.00012602,2]
[351282570,1738505544010,-731.11,0.00012602,2]
[351282571,1738505544020,-500.0,0.00012602,2]
[351282572,1738505544029,-500.0,0.00012602,2]
[351282573,1738505544039,-592.69,0.00012602,2]
[351282574,1738505544048,-463.17957537,0.00012602,2]
[351282575,1738505544057,-625.97,0.00012602,2]
[351282576,1738505544067,-500.0,0.00012602,2]
[351282577,1738505544076,-500.0,0.00012602,2]
[351282578,1738505544086,-500.0,0.00012602,2]
[351282579,1738505544096,-661.86,0.00012602,2]
[351282580,1738505544106,-552.57,0.00012602,2]
[351282581,1738505544116,-3015.63,0.00012602,2]
[351282582,1738505544126,-500.0,0.00012602,2]
[351282583,1738505544136,-635.12,0.00012602,2]
[351282584,1738505544145,-1112.86,0.00012602,2]
[351282585,1738505544156,-511.08,0.00012602,2]
[351282586,1738505544165,-910.85,0.00012602,2]
[351282587,1738505544175,-200.07357533,0.00012602,2]
[351282588,1738505544185,-500.0,0.00012602,2]
[351282589,1738505544195,-738.14,0.00012602,2]
[351282590,1738505544205,-272.61150231,0.00012602,2]
[351282591,1738505544215,-1482.76,0.00012602,2]
[351282592,1738505544225,-500.0,0.00012602,2]
[351282593,1738505544234,-500.0,0.00012602,2]
[351282594,1738505544245,-545.77,0.00012602,2]
[351282595,1738505544255,-500.0,0.00012602,2]
[351282596,1738505544264,-735.2,0.00012602,2]
[351282597,1738505544274,-717.38,0.00012602,2]
[351282598,1738505544285,-500.0,0.00012602,2]
[351282599,1738505544295,-500.0,0.00012602,2]
[351282600,1738505544305,-2333.39,0.00012602,2]
[351282601,1738505544315,-618.28,0.00012602,2]
[351282602,1738505544325,-500.0,0.00012602,2]
[351282603,1738505544335,-2305.89,0.00012602,2]
[351282604,1738505544344,-703.3,0.00012602,2]
[351282605,1738505544355,-2217.46,0.00012602,2]
[351282606,1738505544365,-500.0,0.00012602,2]
[351282607,1738505544375,-573.42,0.00012602,2]
[351282608,1738505544386,-2053.36,0.00012602,2]
[351282609,1738505544396,-1106.04,0.00012602,2]
[351282610,1738505544406,-2139.13,0.00012602,2]
[351282611,1738505544416,-500.0,0.00012602,2]
[351282612,1738505544426,-500.0,0.00012602,2]
[351282613,1738505544437,-1316.15,0.00012602,2]
[351282614,1738505544447,-500.0,0.00012602,2]
[351282615,1738505544456,-500.0,0.00012602,2]
[351282616,1738505544466,-548.83,0.00012602,2]
[351282617,1738505544476,-553.21,0.00012602,2]
[351282618,1738505544487,-525.3,0.00012602,2]
[351282619,1738505544498,-500.0,0.00012602,2]
[351282620,1738505544508,-2325.54,0.00012602,2]
[351282621,1738505544518,-1109.74,0.00012602,2]
[351282622,1738505544527,-500.44,0.00012602,2]
[351282623,1738505544537,-681.73,0.00012602,2]
[351282624,1738505544548,-677.93,0.00012602,2]
[351282625,1738505544558,-513.34,0.00012602,2]
[351282626,1738505544569,-1154.2,0.00012602,2]
[351282627,1738505544579,-2022.69,0.00012602,2]
[351282628,1738505544589,-685.35,0.00012602,2]
[351282629,1738505544599,-500.0,0.00012602,2]
[351282630,1738505544609,-500.0,0.00012602,2]
[351282631,1738505544619,-500.0,0.00012602,2]
[351282632,1738505544630,-550.64,0.00012602,2]
[351282633,1738505544640,-500.0,0.00012602,2]
[351282634,1738505544650,-1342.11,0.00012602,2]
[351282635,1738505544659,-500.0,0.00012602,2]
[351282636,1738505544669,-2093.39,0.00012602,2]
[351282637,1738505544679,-880.18,0.00012602,2]
[351282638,1738505544689,-1643.92,0.00012602,2]
[351282639,1738505544699,-500.0,0.00012602,2]
[351282640,1738505544709,-793.33,0.00012602,2]
[351282641,1738505544719,-585.81230732,0.00012602,2]
[351282642,1738505544728,-500.0,0.00012602,2]
[351282643,1738505544738,-500.0,0.00012602,2]
[351282644,1738505544747,-1232.16,0.00012602,2]
[351282645,1738505544757,-366.25827202,0.00012602,2]
[351282646,1738505544767,-588.54,0.00012602,2]
[351282647,1738505544777,-500.0,0.00012602,2]
[351282648,1738505544787,-534.34,0.00012602,2]
[351282649,1738505544797,-538.87,0.00012602,2]
[351282650,1738505544807,-793.28,0.00012602,2]
[351282651,1738505544817,-500.0,0.00012602,2]
[351282652,1738505544827,-1592.88,0.00012602,2]
[351282653,1738505544836,-616.53,0.00012602,2]
[351282654,1738505544846,-500.0,0.00012602,2]
[351282655,1738505544856,-500.0,0.00012602,2]
[351282656,1738505544865,-1854.87,0.00012602,2]
[351282657,1738505544876,-1690.33,0.00012602,2]
[351282658,1738505544886,-500.0,0.00012602,2]
[351282659,1738505544895,-500.0,0.00012602,2]
[351282660,1738505544905,-534.43,0.00012602,2]
[351282661,1738505544915,-508.93,0.00012602,2]
[351282662,1738505544924,-500.0,0.00012602,2]
[351282663,1738505544933,-637.72,0.00012602,2]
[351282664,1738505544943,-1150.84,0.00012602,2]
[351282665,1738505544952,-508.66,0.00012602,2]
[351282666,1738505544962,-500.0,0.00012602,2]
[351282667,1738505544972,-586.07,0.00012602,2]
[351282668,1738505544982,-800.25,0.00012602,2]
[351282669,1738505544994,-731.54,0.00012602,2]
[351282670,1738505545003,-1305.07,0.00012602,2]
[351282671,1738505545014,-1841.9,0.00012602,2]
[351282672,1738505545023,-734.22,0.00012602,2]
[351282673,1738505545033,-500.0,0.00012602,2]
[351282674,1738505545043,-1731.58,0.00012602,2]
[351282675,1738505545053,-573.1,0.00012602,2]
[351282676,1738505545063,-500.0,0.00012602,2]
[351282677,1738505545073,-500.0,0.00012602,2]
[351282678,1738505545083,-1366.78,0.00012602,2]
[351282679,1738505545093,-500.0,0.00012602,2]
[351282680,1738505545103,-1447.06,0.00012602,2]
[351282681,1738505545113,-548.48540258,0.00012602,2]
[351282682,1738505545122,-955.56,0.00012602,2]
[351282683,1738505545132,-521.42,0.00012602,2]
[351282684,1738505545142,-854.39,0.00012602,2]
[351282685,1738505545151,-904.27,0.00012602,2]
[351282686,1738505545161,-2762.56,0.00012602,2]
[351282687,1738505545171,-500.0,0.00012602,2]
[351282688,1738505545181,-500.0,0.00012602,2]
[351282689,1738505545191,-666.98,0.00012602,2]
[351282690,1738505545201,-783.0,0.00012602,2]
[351282691,1738505545210,-500.0,0.00012602,2]
[351282692,1738505545220,-2104.01,0.00012602,2]
[351282693,1738505545229,-2287.85,0.00012602,2]
[351282694,1738505545240,-944.74,0.00012602,2]
[351282695,1738505545250,-738.27,0.00012602,2]
[351282696,1738505545260,-505.82,0.00012602,2]
[351282697,1738505545269,-1519.92,0.00012602,2]
[351282698,1738505545278,-1297.85,0.00012602,2]
[351282699,1738505545288,-500.0,0.00012602,2]
[351282700,1738505545298,-500.0,0.00012602,2]
[351282701,1738505545308,-500.0,0.00012602,2]
[351282702,1738505545318,-500.0,0.00012602,2]
[351282703,1738505545413,-643.77,0.00012602,2]
[351282704,1738505545425,-784.02,0.00012602,2]
[351282705,1738505545434,-529.45,0.00012602,2]
[351282706,1738505545444,-500.0,0.00012602,2]
[351282707,1738505545454,-500.0,0.00012602,2]
[351282708,1738505545463,-1418.55,0.00012602,2]
[351282709,1738505545475,-517.07,0.00012602,2]
[351282710,1738505545484,-2783.69,0.00012602,2]
[351282711,1738505545495,-1420.23,0.00012602,2]
[351282712,1738505545505,-1225.35,0.00012602,2]
[351282713,1738505545514,-2181.51,0.00012602,2]
[351282714,1738505545524,-500.0,0.00012602,2]
[351282715,1738505545534,-500.0,0.00012602,2]
[351282716,1738505545547,-500.0,0.00012602,2]
[351282717,1738505545557,-942.19,0.00012602,2]
[351282718,1738505545566,-507.86,0.00012602,2]
[351282719,1738505545575,-844.52,0.00012602,2]
[351282720,1738505545586,-1267.86,0.00012602,2]
[351282721,1738505545595,-1642.95,0.00012602,2]
[351282722,1738505545605,-632.5,0.00012602,2]
[351282723,1738505545615,-500.0,0.00012602,2]
[351282724,1738505545624,-717.96,0.00012602,2]
[351282725,1738505545634,-862.89,0.00012602,2]
[351282726,1738505545644,-500.0,0.00012602,2]
[351282727,1738505545654,-978.15,0.00012602,2]
[351282728,1738505545664,-1851.1,0.00012602,2]
[351282729,1738505545673,-591.76,0.00012602,2]
[351282730,1738505545683,-722.67,0.00012602,2]
[351282731,1738505545693,-500.0,0.00012602,2]
[351282732,1738505545702,-500.0,0.00012602,2]
[351282733,1738505545712,-520.38,0.00012602,2]
[351282734,1738505545721,-500.0,0.00012602,2]
[351282735,1738505545730,-500.0,0.00012602,2]
[351282736,1738505545740,-1708.12,0.00012602,2]
[351282737,1738505545749,-523.57,0.00012602,2]
[351282738,1738505545759,-500.0,0.00012602,2]
[351282739,1738505545768,-760.88,0.00012602,2]
[351282740,1738505545778,-500.0,0.00012602,2]
[351282741,1738505545788,-500.0,0.00012602,2]
[351282742,1738505545797,-500.0,0.00012602,2]
[351282743,1738505545807,-1175.0,0.00012602,2]
[351282744,1738505545816,-811.43,0.00012602,2]
[351282745,1738505545826,-1373.61,0.00012602,2]
[351282746,1738505545836,-1105.09,0.00012602,2]
[351282747,1738505545845,-747.24,0.00012602,2]
[351282748,1738505545854,-1419.66,0.00012602,2]
[351282749,1738505545865,-899.67,0.00012602,2]
[351282750,1738505545874,-500.0,0.00012602,2]
[351282751,1738505545884,-500.0,0.00012602,2]
[351282752,1738505545894,-814.85,0.00012602,2]
[351282753,1738505545904,-500.0,0.00012602,2]
[351282754,1738505545913,-967.34,0.00012602,2]
[351282755,1738505545923,-984.06,0.00012602,2]
[351282756,1738505545932,-709.72,0.00012602,2]
[351282757,1738505545942,-580.72,0.00012602,2]
[351282758,1738505545951,-500.0,0.00012602,2]
[351282759,1738505545960,-509.47,0.00012602,2]
[351282760,1738505545970,-1529.4,0.00012602,2]
[351282761,1738505545980,-1025.92,0.00012602,2]
[351282762,1738505545989,-500.0,0.00012602,2]
[351282763,1738505545999,-736.8,0.00012602,2]
[351282764,1738505546008,-500.0,0.00012602,2]
[351282765,1738505546017,-500.0,0.00012602,2]
[351282766,1738505546027,-230.61523859,0.00012602,2]
[351282767,1738505546036,-363.62114223,0.00012602,2]
[351282768,1738505546045,-500.0,0.00012602,2]
[351282769,1738505546054,-500.0,0.00012602,2]
[351282770,1738505546064,-500.0,0.00012602,2]
[351282771,1738505546074,-794.58,0.00012602,2]
[351282772,1738505546083,-419.86463679,0.00012602,2]
[351282773,1738505546092,-515.19,0.00012602,2]
[351282774,1738505546102,-500.0,0.00012602,2]
[351282775,1738505546111,-551.09,0.00012602,2]
[351282776,1738505546120,-515.76431586,0.00012602,2]
[351282777,1738505546129,-1457.11,0.00012602,2]
[351282778,1738505546139,-500.0,0.00012602,2]
[351282779,1738505546148,-848.94,0.00012602,2]
[351282780,1738505546158,-512.04,0.00012602,2]
[351282781,1738505546167,-1457.16,0.00012602,2]
[351282782,1738505546177,-562.76,0.00012602,2]
[351282783,1738505546186,-1032.24,0.00012602,2]
[351282784,1738505546195,-1061.96,0.00012602,2]
[351282785,1738505546205,-500.0,0.00012602,2]
[351282786,1738505546214,-1015.65,0.00012602,2]
[351282787,1738505546223,-679.22,0.00012602,2]
[351282788,1738505546233,-1177.9,0.00012602,2]
[351282789,1738505546243,-510.71,0.00012602,2]
[351282790,1738505546252,-216.74879828,0.00012602,2]
[351282791,1738505546262,-500.0,0.00012602,2]
[351282792,1738505546271,-584.42,0.00012602,2]
[351282793,1738505546280,-1657.79,0.00012602,2]
[351282794,1738505546291,-1057.32,0.00012602,2]
[351282795,1738505546300,-500.0,0.00012602,2]
[351282796,1738505546310,-500.0,0.00012602,2]
[351282797,1738505546319,-500.0,0.00012602,2]
[351282798,1738505546329,-737.32,0.00012602,2]
[351282799,1738505546338,-865.79,0.00012602,2]
[351282800,1738505546347,-1316.4,0.00012602,2]
[351282801,1738505546357,-671.26,0.00012602,2]
[351282802,1738505546367,-751.62,0.00012602,2]
[351282803,1738505546376,-1011.53,0.00012602,2]
[351282804,1738505546386,-750.62,0.00012602,2]
[351282805,1738505546395,-500.0,0.00012602,2]
[351282806,1738505546405,-1248.28,0.00012602,2]
[351282807,1738505546414,-519.27,0.00012602,2]
[351282808,1738505546424,-500.0,0.00012602,2]
[351282809,1738505546433,-500.0,0.00012602,2]
[351282810,1738505546443,-775.41,0.00012602,2]
[351282811,1738505546454,-650.78,0.00012602,2]
[351282812,1738505546465,-500.0,0.00012602,2]
[351282813,1738505546474,-787.2,0.00012602,2]
[351282814,1738505546484,-500.0,0.00012602,2]
[351282815,1738505546495,-1398.59,0.00012602,2]
[351282816,1738505546504,-2098.34,0.00012602,2]
[351282817,1738505546514,-1717.3,0.00012602,2]
[351282818,1738505546523,-535.92,0.00012602,2]
[351282819,1738505546533,-349.9213436,0.00012602,2]
[351282820,1738505546547,-500.0,0.00012602,2]
[351282821,1738505546558,-520.83,0.00012602,2]
[351282822,1738505546568,-500.0,0.00012602,2]
[351282823,1738505546577,-500.0,0.00012602,2]
[351282824,1738505546588,-1388.03,0.00012602,2]
[351282825,1738505546598,-696.21,0.00012602,2]
[351282826,1738505546607,-638.42,0.00012602,2]
[351282827,1738505546617,-1523.64,0.00012602,2]
[351282828,1738505546627,-1438.93,0.00012602,2]
[351282829,1738505546636,-500.0,0.00012602,2]
[351282830,1738505546646,-500.0,0.00012602,2]
[351282831,1738505546655,-1164.79,0.00012602,2]
[351282832,1738505546665,-500.0,0.00012602,2]
[351282833,1738505546675,-2008.34,0.00012602,2]
[351282834,1738505546685,-867.5,0.00012602,2]
[351282835,1738505546695,-500.0,0.00012602,2]
[351282836,1738505546705,-930.83,0.00012602,2]
[351282837,1738505546714,-1142.86,0.00012602,2]
[351282838,1738505546724,-1063.97,0.00012602,2]
[351282839,1738505546734,-5963.38,0.00012602,2]
[351282840,1738505546745,-632.65,0.00012602,2]
[351282841,1738505546755,-528.98,0.00012602,2]
[351282842,1738505546764,-939.46,0.00012602,2]
[351282843,1738505546773,-500.0,0.00012602,2]
[351282844,1738505546783,-2575.73,0.00012602,2]
[351282845,1738505546792,-1411.82,0.00012602,2]
[351282846,1738505546802,-500.0,0.00012602,2]
[351282847,1738505546812,-500.0,0.00012602,2]
[351282848,1738505546821,-4332.07,0.00012602,2]
[351282849,1738505546831,-500.0,0.00012602,2]
[351282850,1738505546840,-623.14,0.00012602,2]
[351282851,1738505546849,-808.47,0.00012602,2]
[351282852,1738505546859,-500.0,0.00012602,2]
[351282853,1738505546868,-500.0,0.00012602,2]
[351282854,1738505546877,-500.0,0.00012602,2]
[351282855,1738505546887,-1167.23,0.00012602,2]
[351282856,1738505546898,-1073.14,0.00012602,2]
[351282857,1738505546908,-1266.06,0.00012602,2]
[351282858,1738505546917,-1098.43,0.00012602,2]
[351282859,1738505546927,-1643.83,0.00012602,2]
[351282860,1738505546936,-2134.84,0.00012602,2]
[351282861,1738505546946,-7531.63,0.00012602,2]
[351282862,1738505546955,-636.47,0.00012602,2]
[351282863,1738505546966,-2806.74,0.00012602,2]
[351282864,1738505546976,-500.0,0.00012602,2]
[351282865,1738505546987,-4457.82,0.00012602,2]
[351282866,1738505546997,-500.0,0.00012602,2]
[351282867,1738505547007,-500.0,0.00012602,2]
[351282868,1738505547017,-1431.15,0.00012602,2]
[351282869,1738505547027,-500.0,0.00012602,2]
[351282870,1738505547036,-1068.36,0.00012602,2]
[351282871,1738505547046,-3317.75,0.00012602,2]
[351282872,1738505547055,-500.0,0.00012602,2]
[351282873,1738505547064,-500.0,0.00012602,2]
[351282874,1738505547074,-3236.23,0.00012602,2]
[351282875,1738505547083,-500.0,0.00012602,2]
[351282876,1738505547093,-500.0,0.00012602,2]
[351282877,1738505547103,-998.58,0.00012602,2]
[351282878,1738505547113,-649.19,0.00012602,2]
[351282879,1738505547122,-3603.07,0.00012602,2]
[351282880,1738505547132,-647.76,0.00012602,2]
[351282881,1738505547142,-518.71,0.00012602,2]
[351282882,1738505547152,-2773.67,0.00012602,2]
[351282883,1738505547161,-3478.77,0.00012602,2]
[351282884,1738505547171,-1377.07,0.00012602,2]
[351282885,1738505547181,-500.0,0.00012602,2]
[351282886,1738505547191,-1559.79,0.00012602,2]
[351282887,1738505547201,-993.51,0.00012602,2]
[351282888,1738505547211,-1353.14,0.00012602,2]
[351282889,1738505547222,-532.1,0.00012602,2]
[351282890,1738505547233,-1889.01,0.00012602,2]
[351282891,1738505547244,-5584.57,0.00012602,2]
[351282892,1738505547254,-628.58,0.00012602,2]
[351282893,1738505547264,-500.0,0.00012602,2]
[351282894,1738505547275,-500.0,0.00012602,2]
[351282895,1738505547286,-1416.56,0.00012602,2]
[351282896,1738505547297,-966.92,0.00012602,2]
[351282897,1738505547308,-1706.09,0.00012602,2]
[351282898,1738505547319,-820.07,0.00012602,2]
[351282899,1738505547329,-865.01,0.00012602,2]
[351282900,1738505547340,-555.56,0.00012602,2]
[351282901,1738505547350,-500.0,0.00012602,2]
[351282902,1738505547361,-6599.2,0.00012602,2]
[351282903,1738505547371,-4362.97,0.00012602,2]
[351282904,1738505547382,-3023.49,0.00012602,2]
[351282905,1738505547393,-1475.65,0.00012602,2]
[351282906,1738505547403,-786.41,0.00012602,2]
[351282907,1738505547413,-1337.09,0.00012602,2]
[351282908,1738505547424,-1205.96,0.00012602,2]
[351282909,1738505547434,-1903.11,0.00012602,2]
[351282910,1738505547445,-2817.82,0.00012602,2]
[351282911,1738505547455,-2360.45,0.00012602,2]
[351282912,1738505547465,-500.0,0.00012602,2]
[351282913,1738505547474,-583.26,0.00012602,2]
[351282914,1738505547485,-934.52,0.00012602,2]
[351282915,1738505547497,-1388.22,0.00012602,2]
[351282916,1738505547507,-2432.51,0.00012602,2]
[351282917,1738505547517,-2243.95,0.00012602,2]
[351282918,1738505547527,-609.67,0.00012602,2]
[351282919,1738505547537,-1262.46,0.00012602,2]
[351282920,1738505547549,-2572.68,0.00012602,2]
[351282921,1738505547560,-1950.74,0.00012602,2]
[351282922,1738505547569,-526.80327295,0.00012602,2]
[351282923,1738505547578,-1181.19,0.00012602,2]
[351282924,1738505547589,-871.86,0.00012602,2]
[351282925,1738505547600,-1126.88,0.00012602,2]
[351282926,1738505547610,-541.6,0.00012602,2]
[351282927,1738505547620,-2805.0,0.00012602,2]
[351282928,1738505547631,-2478.61,0.00012602,2]
[351282929,1738505547640,-3490.69,0.00012602,2]
[351282930,1738505547650,-1886.99,0.00012602,2]
[351282931,1738505547660,-693.62,0.00012602,2]
[351282932,1738505547670,-1166.42,0.00012602,2]
[351282933,1738505547680,-4718.72,0.00012602,2]
[351282934,1738505547690,-646.83,0.00012602,2]
[351282935,1738505547699,-500.0,0.00012602,2]
[351282936,1738505547709,-1219.56,0.00012602,2]
[351282937,1738505547719,-1713.43,0.00012602,2]
[351282938,1738505547728,-500.0,0.00012602,2]
[351282939,1738505547738,-764.96,0.00012602,2]
[351282940,1738505547750,-742.31,0.00012602,2]
[351282941,1738505547759,-585.08,0.00012602,2]
[351282942,1738505547769,-5247.94,0.00012602,2]
[351282943,1738505547779,-1545.21,0.00012602,2]
[351282944,1738505547788,-5157.65,0.00012602,2]
[351282945,1738505547798,-2240.61,0.00012602,2]
[351282946,1738505547807,-1481.58,0.00012602,2]
[351282947,1738505547817,-535.67,0.00012602,2]
[351282948,1738505547826,-1485.26,0.00012602,2]
[351282949,1738505547836,-1399.19,0.00012602,2]
[351282950,1738505547845,-3226.98,0.00012602,2]
[351282951,1738505547855,-1311.36,0.00012602,2]
[351282952,1738505547865,-500.0,0.00012602,2]
[351282953,1738505547875,-5680.36,0.00012602,2]
[351282954,1738505547885,-500.0,0.00012602,2]
[351282955,1738505547896,-2300.21,0.00012602,2]
[351282956,1738505547906,-2521.42,0.00012602,2]
[351282957,1738505547916,-2782.57,0.00012602,2]
[351282958,1738505547927,-500.0,0.00012602,2]
[351282959,1738505547937,-1766.1,0.00012602,2]
[351282960,1738505547947,-1697.0,0.00012602,2]
[351282961,1738505547956,-1939.71,0.00012602,2]
[351282962,1738505547966,-787.48,0.00012602,2]
[351282963,1738505547977,-1300.79,0.00012602,2]
[351282964,1738505547986,-3484.78,0.00012602,2]
[351282965,1738505547997,-512.49,0.00012602,2]
[351282966,1738505548006,-500.0,0.00012602,2]
[351282967,1738505548016,-1213.23,0.00012602,2]
[351282968,1738505548025,-5629.82,0.00012602,2]
[351282969,1738505548035,-2449.26,0.00012602,2]
[351282970,1738505548044,-758.01,0.00012602,2]
[351282971,1738505548053,-848.99,0.00012602,2]
[351282972,1738505548063,-888.7,0.00012602,2]